Workbook

Sheet Explanatory notes

Sheet Inputs- Performance
A1: TNSP XYZ - SERVICE STANDARDS PERFORMANCE
A3: PERFORMANCE PARAMETERS | B3: S | C3: Performance (Without exclusions) | D3: Performance (With exclusions)
A4: Total circuit availability | B4: S1
A5: Transmission circuit availability (critical circuits) | B5: S2
A6: Transmission circuit availability (peak periods) | B6: S3
A7: Loss of supply event frequency ( No of events > 0.05 system minutes) | B7: S4
A8: Loss of supply event frequency ( No of events > 1.0 system minutes) | B8: S5
A9: Average outage duration | B9: S6
A11: Date prepared:
A12: Revision date:

Sheet Inputs - Exclusions
A1: TNSP XYZ - Proposed exclusions
A3: CIRCUIT AVAILABILITY | C3: Event proposed for exclusion | D3: Description of the event and its impact on the network and performance | E3: Cause of the event | F3: Start date | G3: Start time | H3: End date | I3: End time | J3: Circuits affected | K3: Reactive plant or transformer | L3: Quantitative impact | M3: Reasons for exclusion request | O3: Further references
A4: Description of column entries | C4: Description of column entries | D4: Description of column entries | E4: Description of column entries | F4: Description of column entries | H4: Description of column entries | J4: Descripition of column entries | K4: Descripition of column entries | L4: Descripition of column entries | M4: Description of column entries | O4: Description of column entries
A5: S1 | B5: Total circuit availability
A10: S2 | B10: Tranmission circuit availability (critical circuits)
A15: S3 | B15: Transmission circuit availability (peak periods)
A21: LOSS OF SUPPLY EVENT FREQUENCY | C21: Event proposed for exclusion | D21: Description of the event and its impact on the network and performance | E21: Cause of the event | F21: Start date | G21: Start time | H21: End date | I21: End time | J21: Circuits affected | K21: Maximum system demand | L21: Quantitative impact | M21: Demand shed and time | N21: Reasons for exclusion request | O21: Further references
A22: Description of column entries | C22: Description of column entries | D22: Description of column entries | E22: Description of column entries | F22: Description of column entries | H22: Description of column entries | J22: Descripition of column entries | K22: Descripition of column entries | L22: Descripition of column entries | M22: Descripition of column entries | N22: Descripition of column entries | O22: Descripition of column entries
A23: S4 | B23: No of events > 0.05 system minutes
A29: S5 | B29: No of events > 1.0 system minutes
A36: AVERAGE OUTAGE DURATION | C36: Event proposed for exclusion | D36: Description of the event and its impact on the network and performance | E36: Cause of the event | F36: Start date | G36: Start time | H36: End date | I36: End time | J36: Circuits affected | L36: Quantitative impact | M36: Capped impact (if applicable) | N36: Reasons for exclusion request | O36: Further references
A37: Description of column entries | C37: Description of column entries | D37: Description of column entries | E37: Description of column entries | F37: Description of column entries | H37: Description of column entries | J37: Description of column entries | L37: Description of column entries | M37: Description of column entries | N37: Description of column entries | O37: Description of column entries
A38: S6 | B38: Average outage duration

Sheet S1
A1: TNSP XYZ- S1 - Total circuit availability
A3: Performance Targets | B3: Graph start | C3: Collar | D3: Target | E3: Cap | F3: Graph end
A4: Total circuit availability | B4: 0.989 | C4: 0.99 | D4: 0.996 | E4: 0.998 | F4: 0.999
A5: Measure Weighting | B5: -0.001 | C5: -0.001 | D5: 0 | E5: 0.001 | F5: 0.001
A7: Performance Formulae | B7: Formulae | J7: Conditions | M7: S- Calc 1 | N7: S- Calc 2
A8: Performance | B8: = | C8: =B5 -> -0.001 | H8: Where: | J8: Availability | K8: < | L8: 0.99 | M8: =C8 -> -0.001 | N8: =C8 -> -0.001
B9: = | C9: =$C$11/(L9-H9) -> 0.1666666667 | D9: x | E9: Availability | F9: + | G9: =C8-C9*H9 -> -0.166 | H9: 0.99 | I9: ≤ | J9: =J8 -> Availability | K9: ≤ | L9: 0.996 | M9: =$C$9*$C$14+$G$9 -> -0.166 | N9: =$C$9*$D$14+$G$9 -> -0.166
B10: = | C10: =$C$11/(L10-H10) -> 0.5 | D10: x | E10: Availability | F10: + | G10: =C11-C10*H11 -> -0.498 | H10: 0.996 | I10: ≤ | J10: =J9 -> Availability | K10: ≤ | L10: 0.998 | M10: =$C$10*$C$14+$G$10 -> -0.498 | N10: =$C$10*$D$14+$G$10 -> -0.498
B11: = | C11: =F5 -> 0.001 | H11: 0.998 | I11: < | J11: =J10 -> Availability | M11: =$C$11 -> 0.001 | N11: =$C$11 -> 0.001
A13: Performance Outcomes | C13: Performance (Without Exclusions) | D13: Performance (Exclusions)
A14: =A4 -> Total circuit availability | B14: = | C14: ='Inputs- Performance'!C4 -> 0 | D14: ='Inputs- Performance'!D4 -> 0
A15: S-Factor Result | B15: = | C15: =IF(C14<$L$8,M8,IF(C14<=$L$9,M9,IF(C14<=$L$10,M10,M11))) -> -0.001 | D15: =IF(D14<$L$8,N8,IF(D14<=$L$9,N9,IF(D14<=$L$10,N10,N11))) -> -0.001

Sheet S2
A1: TNSP XYZ - S2 - Transmission circuit availability (critical circuits)
A3: Performance Targets | B3: Graph start | C3: Collar | D3: Target | E3: Cap | F3: Graph end
A4: Transmission circuit availability (critical circuits) | B4: 0.98 | C4: 0.984 | D4: 0.992 | E4: 0.998 | F4: 1
A5: S2 | B5: -0.0015 | C5: -0.0015 | D5: 0 | E5: 0.0015 | F5: 0.0015
A7: Performance Formulae | B7: Formulae | J7: Conditions | M7: S- Calc 1 | N7: S- Calc 2
A8: Performance | B8: = | C8: =B5 -> -0.0015 | H8: Where: | J8: Availability | K8: < | L8: 0.984 | M8: =C8 -> -0.0015 | N8: =C8 -> -0.0015
B9: = | C9: =$C$11/(L9-H9) -> 0.1875 | D9: x | E9: Availability | F9: + | G9: =C8-C9*H9 -> -0.186 | H9: 0.984 | I9: ≤ | J9: =J8 -> Availability | K9: ≤ | L9: 0.992 | M9: =$C$9*$C$14+$G$9 -> -0.186 | N9: =$C$9*$D$14+$G$9 -> -0.186
B10: = | C10: =$C$11/(L10-H10) -> 0.25 | D10: x | E10: =E9 -> Availability | F10: + | G10: =C11-C10*H11 -> -0.248 | H10: 0.992 | I10: ≤ | J10: =J9 -> Availability | K10: ≤ | L10: 0.998 | M10: =$C$10*$C$14+$G$10 -> -0.248 | N10: =$C$10*$D$14+$G$10 -> -0.248
B11: = | C11: =F5 -> 0.0015 | H11: 0.998 | I11: < | J11: =J10 -> Availability | M11: =$C$11 -> 0.0015 | N11: =$C$11 -> 0.0015
A13: Performance Outcomes | C13: Performance (Without Exclusions) | D13: Performance (Exclusions)
A14: =A4 -> Transmission circuit availability (critical circuits) | B14: = | C14: ='Inputs- Performance'!C5 -> 0 | D14: ='Inputs- Performance'!D5 -> 0
A15: S-Factor | B15: = | C15: =IF(C14<$L$8,M8,IF(C14<=$L$9,M9,IF(C14<=$L$10,M10,M11))) -> -0.0015 | D15: =IF(D14<$L$8,N8,IF(D14<=$L$9,N9,IF(D14<=$L$10,N10,N11))) -> -0.0015

Sheet S3
A1: TNSP XYZ - S3 - Transmission circuit availability (peak periods)
A3: Performance Targets | B3: Graph start | C3: Collar | D3: Target | E3: Cap | F3: Graph end
A4: Transmission circuit availability (peak periods) | B4: 0.965 | C4: 0.97 | D4: 0.985 | E4: 0.993 | F4: 1
A5: S3 | B5: -0.0015 | C5: -0.0015 | D5: 0 | E5: 0.0015 | F5: 0.0015
A7: Performance Formulae | B7: Formulae | J7: Conditions | M7: S- Calc 1 | N7: S- Calc 2
A8: Performance | B8: = | C8: =B5 -> -0.0015 | H8: Where: | J8: Availability | K8: < | L8: 0.97 | M8: =C8 -> -0.0015 | N8: =C8 -> -0.0015
B9: = | C9: =$C$11/(L9-H9) -> 0.1 | D9: x | E9: Availability | F9: + | G9: =C8-C9*H9 -> -0.0985 | H9: 0.97 | I9: ≤ | J9: =J8 -> Availability | K9: ≤ | L9: 0.985 | M9: =$C$9*$C$14+$G$9 -> -0.0985 | N9: =$C$9*$D$14+$G$9 -> -0.0985
B10: = | C10: =$C$11/(L10-H10) -> 0.1875 | D10: x | E10: =E9 -> Availability | F10: + | G10: =C11-C10*H11 -> -0.1846875 | H10: 0.985 | I10: ≤ | J10: =J9 -> Availability | K10: ≤ | L10: 0.993 | M10: =$C$10*$C$14+$G$10 -> -0.1846875 | N10: =$C$10*$D$14+$G$10 -> -0.1846875
B11: = | C11: =F5 -> 0.0015 | H11: 0.993 | I11: < | J11: =J10 -> Availability | M11: =$C$11 -> 0.0015 | N11: =$C$11 -> 0.0015
A13: Performance Outcomes | C13: Performance (Without Exclusions) | D13: Performance (Exclusions)
A14: =A4 -> Transmission circuit availability (peak periods) | B14: = | C14: ='Inputs- Performance'!C6 -> 0 | D14: ='Inputs- Performance'!D6 -> 0
A15: S-Factor | B15: = | C15: =IF(C14<$L$8,M8,IF(C14<=$L$9,M9,IF(C14<=$L$10,M10,M11))) -> -0.0015 | D15: =IF(D14<$L$8,N8,IF(D14<=$L$9,N9,IF(D14<=$L$10,N10,N11))) -> -0.0015

Sheet S4
A1: TNSP XYZ- S4 - Loss of supply event frequency (No of events > 0.05 system minutes)
A3: Performance Targets | B3: Graph start | C3: Collar | D3: Target | E3: Cap | F3: Graph end
A4: Loss of supply event frequency (No of events > 0.05 system minutes) | B4: 10 | C4: 9 | D4: 6 | E4: 3 | F4: 0
A5: S4 | B5: -0.0025 | C5: -0.0025 | D5: 0 | E5: 0.0025 | F5: 0.0025
A7: Performance Formulae | B7: Formulae | J7: Conditions | M7: S- Calc 1 | N7: S- Calc 2
A8: Performance | B8: = | C8: =B5 -> -0.0025 | H8: 9 | I8: < | J8: No of events | M8: =C8 -> -0.0025 | N8: =C8 -> -0.0025
B9: = | C9: =$C$11/(H9-L9) -> -0.0008333333333 | D9: x | E9: No of events | F9: + | G9: =C8-C9*L9 -> 0.005 | H9: 6 | I9: ≤ | J9: No of events | K9: ≤ | L9: 9 | M9: =$C$9*$C$14+$G$9 -> 0.005 | N9: =$C$9*$D$14+$G$9 -> 0.005
B10: = | C10: =$C$11/(H10-L10) -> -0.0008333333333 | D10: x | E10: No of events | F10: + | G10: =C11-C10*H10 -> 0.005 | H10: 3 | I10: ≤ | J10: No of events | K10: ≤ | L10: 6 | M10: =$C$10*$C$14+$G$10 -> 0.005 | N10: =$C$10*$D$14+$G$10 -> 0.005
B11: = | C11: =F5 -> 0.0025 | J11: No of events | K11: < | L11: 3 | M11: =$C$11 -> 0.0025 | N11: =$C$11 -> 0.0025
A13: Performance Outcomes | C13: Performance (Without Exclusions) | D13: Performance (Exclusions)
A14: =A4 -> Loss of supply event frequency (No of events > 0.05 system minutes) | B14: = | C14: ='Inputs- Performance'!C7 -> 0 | D14: ='Inputs- Performance'!D7 -> 0
A15: S-Factor | B15: = | C15: =IF(C14>$H$8,M8,IF(C14>=$H$9,M9,IF(C14>=$H$10,M10,M11))) -> 0.0025 | D15: =IF(D14>$H$8,N8,IF(D14>=$H$9,N9,IF(D14>=$H$10,N10,N11))) -> 0.0025

Sheet S5
A1: TNSP XYZ- S5 - Loss of supply event frequency (No of events > 1.0 system minutes)
A3: Performance Targets | B3: Graph start | C3: Collar | D3: Target | E3: Cap | F3: Graph end
A4: Loss of supply event frequency (No of events > 1.0 system minutes) | B4: 3 | C4: 2 | D4: 1 | E4: 0 | F4: 0
A5: S5 | B5: -0.002 | C5: -0.002 | D5: 0 | E5: 0.002 | F5: 0.002
A7: Performance Formulae | B7: Formulae | J7: Conditions | M7: S- Calc 1 | N7: S- Calc 2
A8: Performance | B8: = | C8: =B5 -> -0.002 | H8: Where: | J8: No of events | K8: > | L8: 2 | M8: =C8 -> -0.002 | N8: =C8 -> -0.002
B9: = | C9: =$C$11/(H9-L9) -> -0.002 | D9: x | E9: No of events | F9: + | G9: =C8-C9*L9 -> 0.002 | H9: 1 | I9: ≤ | J9: No of events | K9: ≤ | L9: 2 | M9: =$C$9*$C$14+$G$9 -> 0.002 | N9: =$C$9*$D$14+$G$9 -> 0.002
B10: = | C10: =$C$11/(H10-L10) -> -0.002 | D10: x | E10: No of events | F10: + | G10: =C11-C10*L11 -> 0.002 | H10: 0 | I10: ≤ | J10: No of events | K10: ≤ | L10: 1 | M10: =$C$10*$C$14+$G$10 -> 0.002 | N10: =$C$10*$D$14+$G$10 -> 0.002
B11: = | C11: =F5 -> 0.002 | J11: No of events | K11: < | L11: 0 | M11: =$C$11 -> 0.002 | N11: =$C$11 -> 0.002
A13: Performance Outcomes | C13: Performance (Without Exclusions) | D13: Performance (Exclusions)
A14: =A4 -> Loss of supply event frequency (No of events > 1.0 system minutes) | B14: = | C14: ='Inputs- Performance'!C8 -> 0 | D14: ='Inputs- Performance'!D8 -> 0
A15: S-Factor | B15: = | C15: =IF(C14>$L$8,M8,IF(C14>=$H$9,M9,IF(C14>=$H$10,M10,M11))) -> 0.002 | D15: =IF(D14>$L$8,N8,IF(D14>=$H$9,N9,IF(D14>=$H$10,N10,N11))) -> 0.002

Sheet S6
A1: TNSP XYZ - S6 - Average outage duration
A3: Performance Targets | B3: Graph start | C3: Collar | D3: Target | E3: Cap | F3: Graph end
A4: Average outage duration | B4: 1900 | C4: 1800 | D4: 1500 | E4: 800 | F4: 700
A5: S6 | B5: -0.001 | C5: -0.001 | D5: 0 | E5: 0.001 | F5: 0.001
A7: Performance Formulae | B7: Formulae | J7: Conditions | M7: S- Calc 1 | N7: S- Calc 2
A8: Performance | B8: = | C8: =B5 -> -0.001 | H8: Where: | J8: Average time | K8: > | L8: 1800 | M8: =C8 -> -0.001 | N8: =C8 -> -0.001
B9: = | C9: =0.001/(H9-L9) -> -3.333333333e-06 | D9: x | E9: Average time | F9: + | G9: =C8-C9*L9 -> 0.005 | H9: 1500 | I9: ≤ | J9: Average time | K9: ≤ | L9: 1800 | M9: =$C$9*$C$14+$G$9 -> 0.005 | N9: =$C$9*$D$14+$G$9 -> 0.005
B10: = | C10: =0.001/(H10-L10) -> -1.428571429e-06 | D10: x | E10: Average time | F10: + | G10: =C11-C10*H10 -> 0.002142857143 | H10: 800 | I10: ≤ | J10: Average time | K10: ≤ | L10: 1500 | M10: =$C$10*$C$14+$G$10 -> 0.002142857143 | N10: =$C$10*$D$14+$G$10 -> 0.002142857143
B11: = | C11: 0.001 | J11: Average time | K11: < | L11: 800 | M11: =C11 -> 0.001 | N11: =C11 -> 0.001
B12: = | C12: =F5 -> 0.001 | J12: Average time | K12: < | L12: 800 | M12: =$C$12 -> 0.001 | N12: =$C$12 -> 0.001
A13: Performance Outcomes | C13: Performance (Without Exclusions) | D13: Performance (Exclusions)
A14: =A4 -> Average outage duration | B14: = | C14: ='Inputs- Performance'!C9 -> 0 | D14: ='Inputs- Performance'!D9 -> 0
A15: S-Factor | B15: = | C15: =IF(C14>$L$8,M8,IF(C14>=$H$9,M9,IF(C14>$H$10,M10,M11))) -> 0.001 | D15: =IF(D14>$L$8,N8,IF(D14>=$H$9,N9,IF(D14>$H$10,N10,N11))) -> 0.001

Sheet Revenue Calculation
A1: TNSP XYZ - Revenue calculation
A3: Revenue cap information
A4: Base revenue | B4: 100000000
A5: Base year | B5: 2005-06
A6: X-factor | B6: -0.025
A7: Decision CPI | B7: 0.025
A9: Annual revenue adjusted for CPI | B9: 2005-03-01 | D9: 2006-03-01 | F9: 2007-03-01
A10: CPI | B10: 144.1 | D10: 147.5 | E10: 151.47 | F10: 151.9
B11: 2005-06 | D11: 2006-07 | F11: 2007-08
A12: AR | B12: =$B$4 -> 100000000 | D12: =B12*((1+(D10-B10)/B10)*(1-$B$6)) -> 104918459.4 | F12: =D12*((1+(F10-D10)/D10)*(1-$B$6)) -> 110749436.2
A14: Calendar year revenue | C14: 2005 | E14: 2006 | G14: 2007
A15: Revenue | C15: =B12/2 -> 50000000 | E15: =AVERAGE(B12:E12) -> 102459229.7 | G15: =AVERAGE(D12:G12) -> 107833947.8

Sheet Outcomes
A1: TNSP XYZ- Performance outcomes
A3: Revenue calendar year ($) | C3: ='Revenue Calculation'!G15 -> 107833947.8
A5: Performance parameter | B5: S | C5: Target | D5: Performance without exclusions | G5: Performance with exclusions | J5: Impact of exclusions
D6: Performance | E6: S-Factor | F6: Final Incentive | G6: Performance | H6: S-Factor | I6: Final Incentive
A7: Total circuit availabilty | B7: S1 | C7: ='S1'!D4 -> 0.996 | D7: ='S1'!C14 -> 0 | E7: ='S1'!C15 -> -0.001 | F7: =E7*$C$3 -> -107833.9478 | G7: ='S1'!D14 -> 0 | H7: ='S1'!D15 -> -0.001 | I7: =$C$3*H7 -> -107833.9478 | J7: =H7-E7 -> 0
A8: Transmission circuit availability (critical circuits) | B8: S2 | C8: ='S2'!D4 -> 0.992 | D8: ='S2'!C14 -> 0 | E8: ='S2'!C15 -> -0.0015 | F8: -161750.9217 | G8: ='S2'!D14 -> 0 | H8: ='S2'!D15 -> -0.0015 | I8: -161750.9217 | J8: 0
A9: Transmission circuit availability (peak periods) | B9: S3 | C9: ='S3'!$D$4 -> 0.985 | D9: ='S3'!C14 -> 0 | E9: ='S3'!C15 -> -0.0015 | F9: -161750.9217 | G9: ='S3'!D14 -> 0 | H9: ='S3'!D15 -> -0.0015 | I9: -161750.9217 | J9: 0
A10: Loss of supply event frequency ( No of events > 0.05 system minutes) | B10: S4 | C10: ='S4'!$D$4 -> 6 | D10: ='S4'!$C$14 -> 0 | E10: ='S4'!$C$15 -> 0.0025 | F10: 269584.8694 | G10: ='S4'!$D$14 -> 0 | H10: ='S4'!$D$15 -> 0.0025 | I10: 269584.8694 | J10: 0
A11: Loss of supply event frequency ( No of events > 1.0 system minutes) | B11: S5 | C11: ='S5'!D4 -> 1 | D11: ='S5'!C14 -> 0 | E11: ='S5'!C15 -> 0.002 | F11: 215667.8956 | G11: ='S5'!D14 -> 0 | H11: ='S5'!D15 -> 0.002 | I11: 215667.8956 | J11: 0
A12: Average outage duration | B12: S6 | C12: ='S6'!D4 -> 1500 | D12: ='S6'!$C$14 -> 0 | E12: ='S6'!$C$15 -> 0.001 | F12: 107833.9478 | G12: ='S6'!$D$14 -> 0 | H12: ='S6'!$D$15 -> 0.001 | I12: 107833.9478 | J12: 0
A14: TOTALS | E14: =SUM(E7:E12) -> 0.0015 | F14: =SUM(F7:F12) -> 161750.9217 | H14: =SUM(H7:H12) -> 0.0015 | I14: =SUM(I7:I12) -> 161750.9217 | J14: =SUM(J7:J12) -> 0
G17: Aggregate outcome
G18: S-factor | I18: =H14 -> 0.0015
G19: Bonus (penalty) | I19: =I14 -> 161750.9217
G20: Financial year to affect revenue | I20: 2008-09

Sheet Exclusion Definitions
A1: TNSP XYZ - Defined exclusions
A3: No. | B3: Parameter 1- Total circuit availability
B4: Defined exclusions | C4: Further description of exclusion | D4: Reference
A5: 1.1 | B5: Unregulated transmission assets | D5: Service target performance incentive scheme
A6: 1.2 | B6: 3rd party outage | C6: Any outages shown to be caused by a fault or other event on a '3rd party system' e.g. intertrip signal, generator outage, customer installation (TNSP to provide list) | D6: Service target performance incentive scheme
A7: 1.3 | B7: Outages to control voltages | C7: Outages to control voltages within required limits, both as directed by NEMMCO and where NEMMCO does not have direct oversight of the network (in both cases only where the element is available for immediate energisation if required) | D7: Service target performance incentive scheme
A8: 1.4 | B8: Force majeure | D8: Service target performance incentive scheme
B9: Parameter 2- Transmission circuit availability (critical circuits)
B10: Defined exclusions | C10: Further description of exclusion | D10: Reference
A11: 2.1 | B11: Unregulated transmission assets | D11: Service target performance incentive scheme
A12: 2.2 | B12: 3rd party outage | C12: Any outages shown to be caused by a fault or other event on a '3rd party system' e.g. intertrip signal, generator outage, customer installation (TNSP to provide list) | D12: Service target performance incentive scheme
A13: 2.3 | B13: Outages to control voltages | C13: Outages to control voltages within required limits, both as directed by NEMMCO and where NEMMCO does not have direct oversight of the network (in both cases only where the element is available for immediate energisation if required) | D13: Service target performance incentive scheme
A14: 2.4 | B14: Force majeure | D14: Service target performance incentive scheme
B15: Parameter 3- Transmission circuit availability (peak periods)
B16: Defined exclusions | C16: Further description of exclusion | D16: Reference
A17: 3.1 | B17: Unregulated transmission assets | D17: Service target performance incentive scheme
A18: 3.2 | B18: 3rd party outage | C18: Any outages shown to be caused by a fault or other event on a '3rd party system' e.g. intertrip signal, generator outage, customer installation (TNSP to provide list) | D18: Service target performance incentive scheme
A19: 3.3 | B19: Outages to control voltages | C19: Outages to control voltages within required limits, both as directed by NEMMCO and where NEMMCO does not have direct oversight of the network (in both cases only where the element is available for immediate energisation if required) | D19: Service target performance incentive scheme
A20: 3.4 | B20: Force majeure | D20: Service target performance incentive scheme
B22: Parameter 4- Loss of supply event frequency (No. of events > 0.05 system mins)
B23: Defined exclusions | C23: Further description of exclusion | D23: Reference
A24: 4.1 | B24: Unregulated transmission assets (eg some connection assets) | D24: Service target performance incentive scheme
A25: 4.2 | B25: Successful reclose events (less than 1 minute duration) | D25: Service target performance incentive scheme
A26: 4.3 | B26: 3rd party outage | C26: Any outages shown to be caused by a fault or other event on a '3rd party system' e.g. intertrip signal, generator outage, customer installation (TNSP to provide list) | D26: Service target performance incentive scheme
A27: 4.4 | B27: Planned outages | D27: Service target performance incentive scheme
A28: 4.5 | B28: Force majeure | D28: Service target performance incentive scheme
B29: Parameter 5 - Loss of supply event frequency (No. of events > 1.0 system mins)
B30: Defined exclusions | C30: Further description of exclusion | D30: Reference
A31: 5.1 | B31: Unregulated transmission assets | D31: Service target performance incentive scheme
A32: 5.2 | B32: Successful reclose events (less than 1 minute duration) | D32: Service target performance incentive scheme
A33: 5.3 | B33: 3rd party outage | C33: Any outages shown to be caused by a fault or other event on a '3rd party system' e.g. intertrip signal, generator outage, customer installation (TNSP to provide list) | D33: Service target performance incentive scheme
A34: 5.4 | B34: Planned outages | D34: Service target performance incentive scheme
A35: 5.5 | B35: Force majeure | D35: Service target performance incentive scheme
B37: Parameter 6 - Average outage duration
B38: Defined exclusions | C38: Further description of exclusion | D38: Reference
A39: 6.1 | B39: Momentary interruptions (less than one minute) | D39: Service target performance incentive scheme
A40: 6.3 | B40: Planned outages | D40: Service target performance incentive scheme
A41: 6.5 | B41: Force majeure | D41: Service target performance incentive scheme
